bitfinex/quotes_BTCUSD_20250513
["timestamp","ask_amount","ask_price","bid_price","bid_amount"]
[1747101762217,0.21955553,102510.0,102500.0,1.3188943]
[1747101762396,0.05946186,102510.0,102500.0,1.48328367]
[1747101762614,0.24481039,102510.0,102500.0,1.13352815]
[1747101762839,0.24140096,102510.0,102500.0,0.7222543]
[1747101763060,0.24140096,102510.0,102500.0,0.6264]
[1747101763283,0.24140096,102510.0,102500.0,0.21447609]
[1747101763479,0.29291617,102510.0,102500.0,0.20472]
[1747101763722,0.23164591,102510.0,102500.0,0.20472]
[1747101763889,0.23164591,102510.0,102500.0,0.19972]
[1747101764108,0.23164591,102510.0,102500.0,0.40659795]
[1747101764315,0.23164591,102510.0,102500.0,0.20172]
[1747101764742,0.23164591,102510.0,102500.0,0.19872]
[1747101765377,0.28218561,102510.0,102500.0,0.19872]
[1747101765575,0.23164591,102510.0,102500.0,0.19872]
[1747101767025,0.48326326,102510.0,102500.0,0.19872]
[1747101767329,0.23164591,102510.0,102500.0,0.19872]
[1747101767783,0.23164591,102510.0,102500.0,0.19672]
[1747101768148,0.23464591,102510.0,102500.0,0.19672]
[1747101768599,0.27552114,102510.0,102500.0,0.19672]
[1747101768816,0.23164591,102510.0,102500.0,0.19672]
[1747101769033,0.23564591,102510.0,102500.0,0.19672]
[1747101770220,0.23564591,102510.0,102500.0,0.39184195]
[1747101770463,0.23564591,102510.0,102500.0,0.19672]
[1747101772052,0.2452544,102490.0,102480.0,0.19768]
[1747101772269,0.54476103,102490.0,102480.0,0.001]
[1747101772536,0.55966993,102490.0,102480.0,0.001]
[1747101773121,0.65552423,102490.0,102480.0,0.001]
[1747101773364,1.00454612,102490.0,102480.0,0.001]
[1747101773574,1.00454612,102490.0,102440.0,0.81584]
[1747101773575,0.0321,102460.0,102440.0,0.81584]
[1747101773791,0.23103821,102450.0,102440.0,0.9116943]
[1747101774007,0.23478883,102450.0,102440.0,0.30807515]
[1747101774232,0.29516915,102450.0,102440.0,0.2935343]
[1747101774442,0.29516915,102450.0,102440.0,0.19768]
[1747101774893,0.29516915,102450.0,102440.0,0.19772873]
[1747101775155,0.29516915,102450.0,102440.0,0.20372873]
[1747101775362,0.5467865,102450.0,102440.0,0.00704873]
[1747101775770,0.5467865,102450.0,102440.0,0.01104873]
[1747101776096,0.5467865,102450.0,102440.0,0.00504873]
[1747101776302,0.5467865,102450.0,102440.0,0.00104873]
[1747101776509,0.5507865,102450.0,102440.0,0.00104873]
[1747101776720,0.5537865,102450.0,102440.0,0.00104873]
[1747101777749,0.9896408,102450.0,102440.0,0.00104873]
[1747101778589,1.24125815,102450.0,102440.0,0.00104873]
[1747101778790,0.9896408,102450.0,102440.0,0.00104873]
[1747101780039,1.25125815,102450.0,102440.0,0.00104873]
[1747101780242,1.54750753,102450.0,102440.0,0.00104873]
[1747101780821,0.23082209,102410.0,102400.0,0.19664]
[1747101781033,0.28935041,102410.0,102400.0,0.19678636]
[1747101781881,0.1952906,102420.0,102410.0,0.01952829]
[1747101781882,0.0314,102420.0,102410.0,0.01952829]
[1747101782091,0.25596426,102420.0,102410.0,0.22458695]
[1747101782320,0.24620121,102420.0,102410.0,0.22458695]
[1747101782526,0.22667436,102420.0,102410.0,0.21482266]
[1747101782711,0.19528668,102430.0,102420.0,0.19527436]
[1747101782956,0.19528668,102430.0,102420.0,0.20503788]
[1747101783168,0.00976343,102420.0,102410.0,0.23912713]
[1747101783368,0.00976343,102420.0,102410.0,0.33498143]
[1747101783369,0.01952705,102420.0,102410.0,0.33498143]
[1747101783575,0.02929076,102420.0,102410.0,0.33498143]
[1747101783896,0.02929057,102420.0,102410.0,0.33498143]
[1747101784098,0.23725922,102420.0,102410.0,0.11039515]
[1747101784314,0.23725922,102420.0,102400.0,0.55132721]
[1747101784315,0.2050579,102410.0,102400.0,0.55132721]
[1747101784587,0.2050579,102410.0,102400.0,0.30718151]
[1747101784735,0.2377579,102410.0,102400.0,0.19678636]
[1747101785160,0.2377579,102410.0,102400.0,0.00014636]
[1747101785367,0.64149014,102410.0,102400.0,0.00014636]
[1747101785576,0.64149014,102410.0,102400.0,0.00614636]
[1747101785740,0.64149014,102410.0,102400.0,0.00014636]
[1747101785741,0.39732208,102410.0,102400.0,0.00014636]
[1747101786217,0.39732208,102410.0,102400.0,0.00614636]
[1747101786398,0.39732208,102410.0,102400.0,0.01214636]
[1747101786757,0.39732208,102410.0,102400.0,0.00614636]
[1747101787189,0.3386122,102410.0,102400.0,0.00614636]
[1747101787597,0.2427579,102410.0,102400.0,0.00614636]
[1747101787886,0.2427579,102410.0,102400.0,0.22475457]
[1747101787887,0.03429247,102410.0,102400.0,0.22475457]
[1747101788097,0.24435037,102410.0,102400.0,0.21498962]
[1747101788362,0.22482228,102410.0,102400.0,0.00014636]
[1747101788500,0.2150579,102410.0,102400.0,0.21498991]
[1747101788711,0.25706756,102410.0,102400.0,0.22475524]
[1747101789178,0.0763029,102410.0,102400.0,0.33037459]
[1747101789383,0.26659632,102410.0,102400.0,0.30107878]
[1747101789618,0.25683213,102410.0,102400.0,0.09600066]
[1747101789838,0.27806765,102410.0,102400.0,0.00214636]
[1747101790052,0.27806765,102410.0,102400.0,0.00514636]
[1747101790473,0.37392195,102410.0,102400.0,0.00514636]
[1747101791123,0.33191229,102410.0,102400.0,0.00514636]
[1747101791335,0.23605799,102410.0,102400.0,0.21022448]
[1747101791538,0.23605799,102410.0,102400.0,0.00314636]
[1747101791746,0.23605799,102410.0,102400.0,0.19845886]
[1747101791934,0.21005799,102410.0,102400.0,0.19845886]
[1747101792153,0.01476429,102410.0,102400.0,0.32060887]
[1747101792324,0.02852829,102410.0,102400.0,0.32060887]
[1747101792735,0.06067304,102410.0,102400.0,0.32060887]
[1747101792909,0.04805744,102410.0,102400.0,0.32060887]
[1747101793321,0.005,102410.0,102400.0,0.53186972]
[1747101793529,0.014764,102410.0,102400.0,0.53686972]
[1747101793778,0.02452819,102410.0,102400.0,0.53686972]
[1747101794016,0.01952819,102410.0,102400.0,0.53686972]
[1747101794521,0.239231,102410.0,102400.0,0.30172066]
[1747101794760,0.27033148,102410.0,102400.0,0.00914636]
[1747101795431,0.27033148,102410.0,102400.0,0.00414636]
[1747101795649,0.27033148,102410.0,102400.0,0.00014636]
[1747101795962,0.27533148,102410.0,102400.0,0.00314636]
[1747101796181,0.27533148,102410.0,102400.0,0.00014636]
[1747101796565,0.27933148,102410.0,102400.0,0.00014636]
[1747101797017,0.25492209,102410.0,102400.0,0.20522438]
[1747101797225,0.03829247,102410.0,102400.0,0.22475457]
[1747101797454,0.05782152,102410.0,102400.0,0.22475457]
[1747101797706,0.23358685,102410.0,102400.0,0.20522438]
[1747101797845,0.23358685,102410.0,102400.0,0.21498981]
[1747101798049,0.03429343,102410.0,102400.0,0.22475514]
[1747101798248,0.02929343,102410.0,102400.0,0.24428533]
[1747101798493,0.0390581,102410.0,102400.0,0.24928533]
[1747101798716,0.01952847,102410.0,102400.0,0.24928533]
[1747101798867,0.03905667,102410.0,102400.0,0.24928533]
[1747101799488,0.03905667,102410.0,102400.0,0.35968048]
[1747101799489,0.00976381,102410.0,102400.0,0.35968048]
[1747101799743,0.02928962,102420.0,102410.0,0.23435009]
[1747101799950,0.02928952,102420.0,102410.0,0.52696439]
[1747101800232,0.03905323,102420.0,102410.0,0.51720058]
[1747101800442,0.02928952,102420.0,102410.0,0.51720058]
[1747101800666,0.03905314,102420.0,102410.0,0.51720058]
[1747101801281,0.06846339,102420.0,102410.0,0.51720058]
[1747101801485,0.26773775,102420.0,102410.0,0.0958543]
[1747101801709,0.26481166,102420.0,102410.0,0.2926143]
[1747101801925,0.27991166,102420.0,102410.0,0.2926143]
[1747101802328,0.27591166,102420.0,102410.0,0.19676]
[1747101802562,0.27591166,102420.0,102410.0,0.19976]
[1747101802697,0.27591166,102420.0,102410.0,0.20952467]
[1747101802899,0.27591166,102420.0,102410.0,0.19976]
[1747101803330,0.23140141,102420.0,102410.0,0.20952467]
[1747101803529,0.22163798,102420.0,102410.0,0.20952467]
[1747101803701,0.21187436,102420.0,102410.0,0.21152467]
[1747101804702,0.21187436,102420.0,102410.0,0.005]
[1747101804703,0.22697436,102420.0,102410.0,0.005]
[1747101804910,0.56699672,102420.0,102410.0,0.005]
[1747101805134,0.66285102,102420.0,102410.0,0.005]
[1747101805394,1.09870532,102420.0,102410.0,0.005]
[1747101806422,1.1259309,102420.0,102410.0,0.005]
[1747101807221,1.3226509,102420.0,102410.0,0.005]
[1747101809333,1.6326509,102420.0,102410.0,0.002]
[1747101809552,1.6326509,102420.0,102400.0,0.00014636]
[1747101809553,0.58602228,102410.0,102400.0,0.00014636]
[1747101809787,1.59069814,102410.0,102400.0,0.00014636]
[1747101810712,1.29050821,102410.0,102400.0,0.00014636]
[1747101810920,0.70910216,102410.0,102400.0,0.00214636]
[1747101811142,0.90578216,102410.0,102400.0,0.00514636]
[1747101811557,0.91078216,102410.0,102400.0,0.00014636]
[1747101811943,0.91378216,102410.0,102400.0,0.00014636]
[1747101813075,1.25380452,102410.0,102400.0,0.00014636]
[1747101813279,1.34965882,102410.0,102400.0,0.00014636]
[1747101813906,1.00963646,102410.0,102400.0,0.00014636]
[1747101816343,0.81295646,102410.0,102400.0,0.00014636]
[1747101816551,1.00967646,102410.0,102400.0,0.00014636]
[1747101817772,1.34969882,102410.0,102400.0,0.00014636]
[1747101818753,1.00967646,102410.0,102400.0,0.00014636]
[1747101821270,0.71710216,102410.0,102400.0,0.00014636]
[1747101823436,0.68987658,102410.0,102400.0,0.00014636]
[1747101825413,0.9417785,102410.0,102400.0,0.00014636]
[1747101826662,0.96902485,102410.0,102400.0,0.00014636]
[1747101826926,1.16570485,102410.0,102400.0,0.00014636]
[1747101827134,1.26155915,102410.0,102400.0,0.00014636]
[1747101829250,1.57155915,102410.0,102400.0,0.00014636]
[1747101829841,1.58155915,102410.0,102400.0,0.00014636]
[1747101837343,1.37487915,102410.0,102400.0,0.00014636]
[1747101837489,1.46574485,102410.0,102400.0,0.00014636]
[1747101837701,1.67246485,102410.0,102400.0,0.00014636]
[1747101840818,0.73936293,102410.0,102400.0,0.00014636]
[1747101841043,0.51539658,102410.0,102400.0,0.00014636]
[1747101841251,0.85539658,102410.0,102400.0,0.00014636]
[1747101841435,0.95125088,102410.0,102400.0,0.00014636]
[1747101843461,1.2195528,102410.0,102400.0,0.00014636]
[1747101844526,0.95125088,102410.0,102400.0,0.00014636]
[1747101844710,0.75453088,102410.0,102400.0,0.00014636]
[1747101845118,0.56282228,102410.0,102400.0,0.00014636]
[1747101845525,0.22282228,102410.0,102400.0,0.00014636]
[1747101852019,0.22282228,102410.0,102400.0,0.03204636]
[1747101852506,0.22282228,102410.0,102400.0,0.23712438]
[1747101852714,0.2130579,102410.0,102400.0,0.04181198]
[1747101852940,0.2130579,102410.0,102400.0,0.24706332]
[1747101853164,0.0177639,102410.0,102400.0,0.6386561]
[1747101853376,0.008,102410.0,102400.0,1.0319361]
[1747101853628,0.008,102410.0,102400.0,1.3719361]
[1747101854310,0.003,102410.0,102400.0,1.3719361]
[1747101854548,0.003,102410.0,102400.0,1.3769361]
[1747101854742,0.03905324,102420.0,102410.0,0.26972713]
[1747101854949,0.03905324,102420.0,102410.0,0.61748335]
[1747101855158,0.03905314,102420.0,102410.0,0.61748335]
[1747101855390,0.03905314,102420.0,102410.0,0.36558143]
[1747101855590,0.03905314,102420.0,102410.0,0.61748335]
[1747101855793,0.03905314,102420.0,102410.0,0.62248335]
[1747101855998,0.01952619,102420.0,102410.0,0.62248335]
[1747101856223,0.03905295,102420.0,102410.0,0.62648335]
[1747101856855,0.19527958,102440.0,102420.0,0.19527436]
[1747101857064,0.0390498,102430.0,102420.0,0.50856628]
[1747101857267,0.0390498,102430.0,102420.0,0.23713798]
[1747101857268,0.2245429,102430.0,102420.0,0.23713798]
[1747101857448,0.2245429,102430.0,102420.0,0.4435415]
[1747101858299,0.2245429,102430.0,102420.0,0.4445415]
[1747101858714,0.27390613,102430.0,102420.0,0.4435415]
[1747101858925,0.27690613,102430.0,102420.0,0.4435415]
[1747101859341,0.01576228,102430.0,102420.0,0.7149698]
[1747101859550,0.04504932,102430.0,102420.0,0.7149698]
[1747101859772,0.04504941,102430.0,102420.0,0.82536495]
[1747101860229,0.2403047,102430.0,102420.0,0.82536514]
[1747101860443,0.2403047,102430.0,102420.0,0.83512828]
[1747101860852,0.2403047,102430.0,102420.0,0.58322636]
[1747101861240,0.27410113,102430.0,102420.0,0.19664]
[1747101861449,0.25457638,102430.0,102420.0,0.19664]
[1747101861661,0.20503788,102420.0,102410.0,0.0314]
[1747101861876,0.2050579,102410.0,102400.0,0.0100852]
[1747101862729,0.2050579,102410.0,102400.0,0.00014636]
[1747101862941,0.28548132,102410.0,102400.0,0.00014636]
[1747101863152,0.30068132,102410.0,102400.0,0.00014636]
[1747101863355,0.30068132,102410.0,102400.0,0.00514636]
[1747101864058,0.55258324,102410.0,102400.0,0.00514636]
[1747101864271,0.55258324,102410.0,102400.0,0.01114636]
[1747101864272,0.64943754,102410.0,102400.0,0.01114636]
[1747101864667,0.98943754,102410.0,102400.0,0.01114636]
[1747101864917,0.98943754,102410.0,102400.0,0.00514636]
[1747101864918,0.98843754,102410.0,102400.0,0.00514636]
[1747101865134,1.39130149,102410.0,102400.0,0.00514636]
[1747101865267,1.39130149,102410.0,102400.0,0.00914636]
[1747101865486,1.39130149,102410.0,102400.0,0.00014636]
[1747101865695,0.73653562,102410.0,102400.0,0.00014636]
[1747101865904,0.5338722,102410.0,102400.0,0.00014636]
[1747101866338,0.4076179,102410.0,102400.0,0.00014636]
[1747101866552,0.2110579,102410.0,102400.0,0.00014636]
[1747101868824,0.22082228,102410.0,102400.0,0.20522429]
[1747101869026,0.27232356,102410.0,102400.0,0.00014636]
[1747101869222,0.27232356,102410.0,102400.0,0.00991188]
[1747101869438,0.27232356,102410.0,102400.0,0.20522438]
[1747101869842,0.27232356,102410.0,102400.0,0.22475514]
[1747101870085,0.2110579,102410.0,102400.0,0.22475514]
[1747101870402,0.02552771,102410.0,102400.0,0.38738048]
[1747101870603,0.04505618,102410.0,102400.0,0.6392824]
[1747101870803,0.05482085,102410.0,102400.0,0.37761553]
[1747101870936,0.05482085,102410.0,102400.0,0.35468048]
[1747101871190,0.23435046,102410.0,102400.0,0.34491553]
[1747101871348,0.23435046,102410.0,102400.0,0.00114636]
[1747101871349,0.23983201,102410.0,102400.0,0.00114636]
[1747101871566,0.23983201,102410.0,102400.0,0.01591198]
[1747101871769,0.21482247,102410.0,102400.0,0.48165716]
[1747101872090,0.21478033,102430.0,102420.0,0.01952714]
[1747101872292,0.21478033,102430.0,102420.0,0.22456483]
[1747101872847,0.01952504,102430.0,102420.0,0.4959937]
[1747101873065,0.01952286,102440.0,102430.0,0.23430499]
[1747101873283,0.22452099,102440.0,102430.0,0.45691997]
[1747101873496,0.22452099,102440.0,102430.0,0.21478071]
[1747101873765,0.21477986,102430.0,102420.0,0.0958543]
[1747101873977,0.21478062,102430.0,102420.0,0.32041913]
[1747101874187,0.2275429,102430.0,102420.0,0.32041932]
[1747101874397,0.2275429,102430.0,102420.0,0.33994579]
[1747101874613,0.27282081,102430.0,102420.0,0.32041932]
[1747101874828,0.00976324,102420.0,102410.0,0.66921934]
[1747101875053,0.02552533,102430.0,102420.0,0.21480131]
[1747101875294,0.02552485,102430.0,102420.0,0.47646628]
[1747101875538,0.006,102430.0,102420.0,0.61826143]
[1747101875784,0.01276209,102430.0,102420.0,0.61826143]
[1747101876028,0.02252447,102430.0,102420.0,0.61826143]
[1747101876400,0.03228704,102430.0,102420.0,0.61826143]
[1747101876636,0.03228704,102430.0,102420.0,0.59662467]
[1747101877892,0.03528704,102430.0,102420.0,0.59662467]
[1747101878095,0.25457089,102430.0,102420.0,0.32519646]
[1747101878329,0.21480112,102420.0,102410.0,0.73181342]
[1747101878572,0.22456417,102420.0,102410.0,0.76110666]
[1747101878780,0.21480112,102420.0,102410.0,0.76110685]
[1747101879019,0.21480112,102420.0,102410.0,0.77087104]
[1747101879467,0.25880962,102420.0,102410.0,0.53652]
[1747101879695,0.22458628,102410.0,102400.0,0.81397886]
[1747101879918,0.22458628,102410.0,102400.0,0.41150981]
[1747101880147,0.20505799,102410.0,102400.0,0.19666636]
[1747101880355,0.20505799,102410.0,102400.0,0.39197886]
[1747101880581,0.20505799,102410.0,102400.0,0.40174438]
[1747101880813,0.20505799,102410.0,102400.0,0.41150981]
[1747101881508,0.20505799,102410.0,102400.0,0.66341173]
[1747101881712,0.20605799,102410.0,102400.0,0.66941173]
[1747101881918,0.20605799,102410.0,102400.0,0.42250981]
[1747101882688,0.20605799,102410.0,102400.0,0.41274438]
[1747101883200,0.001,102410.0,102400.0,0.43227457]
[1747101883380,0.001,102410.0,102400.0,0.83318986]
[1747101883592,0.0205279,102410.0,102400.0,0.79457164]
[1747101883797,0.02052781,102410.0,102400.0,0.79457164]
[1747101884011,0.030292,102410.0,102400.0,0.79457164]
[1747101884707,0.001,102410.0,102400.0,1.15097164]
[1747101884905,0.001,102410.0,102400.0,1.26302594]
[1747101885108,0.001,102410.0,102400.0,1.16717164]
[1747101892005,0.001,102410.0,102400.0,1.41907356]
[1747101892421,0.34453398,102460.0,102450.0,0.21473821]
[1747101892620,0.13955915,102460.0,102450.0,0.6729206]
[1747101892834,0.09749963,102460.0,102450.0,0.77144868]
[1747101893037,0.31221708,102460.0,102450.0,0.76168868]
[1747101893250,0.31522453,102460.0,102450.0,0.19652]
[1747101893442,0.31522453,102460.0,102450.0,0.20628085]
[1747101893765,0.22681717,102450.0,102430.0,0.65122375]
[1747101893968,0.23669775,102440.0,102430.0,0.71444066]
[1747101894174,0.24645946,102440.0,102430.0,0.81384165]
[1747101894382,0.24645946,102440.0,102430.0,0.00014636]
[1747101894575,0.24645946,102440.0,102430.0,0.19666636]
[1747101895441,0.24645946,102440.0,102430.0,0.21042912]
[1747101895629,0.29062712,102440.0,102430.0,0.20066636]
[1747101895765,0.29062712,102440.0,102430.0,0.20266636]
[1747101896192,0.29062712,102440.0,102430.0,0.20066636]
[1747101896736,0.29062712,102440.0,102430.0,0.20266636]
[1747101896926,0.29062712,102440.0,102430.0,0.19866636]
[1747101897461,0.24645946,102440.0,102430.0,0.19866636]
[1747101898178,0.24645946,102440.0,102430.0,0.00214636]
[1747101900386,0.49836138,102440.0,102430.0,0.00214636]
[1747101900601,0.59421568,102440.0,102430.0,0.00214636]
[1747101900839,0.93421568,102440.0,102430.0,0.00214636]
[1747101901062,1.30565658,102440.0,102430.0,0.00214636]
[1747101901299,0.21482209,102410.0,102400.0,0.001]
[1747101901523,1.13141831,102410.0,102400.0,0.001]
[1747101901997,1.44141831,102410.0,102400.0,0.001]
[1747101902215,0.24710602,102370.0,102360.0,0.19692]
[1747101902647,0.22756973,102370.0,102350.0,0.00977039]
[1747101902863,0.22756973,102370.0,102340.0,0.93230418]
[1747101902864,0.0195403,102350.0,102340.0,1.11947554]
[1747101903030,0.0097701,102350.0,102340.0,1.16104984]
[1747101903292,0.01953954,102350.0,102340.0,1.34819916]
[1747101903502,0.22471831,102350.0,102340.0,0.62905952]
[1747101903722,0.24091831,102350.0,102340.0,0.82448652]
[1747101903971,0.2311484,102350.0,102340.0,0.61928817]
[1747101904237,0.01953935,102350.0,102340.0,0.68382056]
[1747101904464,0.00976867,102360.0,102350.0,0.22471794]
[1747101904683,0.0195363,102370.0,102360.0,0.23445377]
[1747101904896,0.22467432,102370.0,102360.0,0.21491642]
[1747101905353,0.42442677,102380.0,102370.0,0.20513821]
[1747101905354,0.43419401,102380.0,102370.0,0.20513821]
[1747101905582,0.01953363,102380.0,102370.0,0.47657528]
[1747101905793,0.03906812,102380.0,102370.0,0.47657528]
[1747101906005,0.00976667,102380.0,102370.0,0.47657528]
[1747101906228,0.06059896,102390.0,102380.0,0.21488523]
[1747101906436,0.01953181,102390.0,102380.0,0.47655401]
[1747101906640,0.01953191,102390.0,102380.0,0.58694916]
[1747101906850,0.02929562,102400.0,102390.0,0.23439634]
[1747101907263,0.29028921,102400.0,102390.0,0.21486443]
[1747101907475,0.29128921,102400.0,102390.0,0.20524453]
[1747101907682,0.29128921,102400.0,102390.0,0.00014639]
[1747101907683,0.29722426,102400.0,102390.0,0.00014639]
[1747101908824,0.29722426,102400.0,102390.0,0.00214639]
[1747101909309,0.29722426,102400.0,102390.0,0.00314639]
[1747101910453,0.24814317,102400.0,102390.0,0.00314639]
[1747101910655,0.001,102400.0,102390.0,0.86258109]
[1747101910863,0.001,102400.0,102390.0,1.41364876]
[1747101911068,0.001,102400.0,102390.0,1.44504876]
[1747101911204,0.001,102400.0,102390.0,1.54090306]
[1747101911403,0.001,102400.0,102390.0,1.44504876]
[1747101912753,0.03029524,102400.0,102390.0,0.87513169]
[1747101912963,0.03029515,102400.0,102390.0,1.07293169]
[1747101913177,0.01076486,102400.0,102390.0,1.08287187]
[1747101913389,0.001,102400.0,102390.0,1.42990894]
[1747101913632,0.001,102400.0,102390.0,1.55786324]
[1747101914052,0.001,102400.0,102390.0,1.45300894]
[1747101914261,0.001,102400.0,102390.0,1.46000894]
[1747101914676,0.001,102400.0,102390.0,1.45300894]
[1747101915053,0.001,102400.0,102390.0,1.45800894]
[1747101915260,0.001,102400.0,102390.0,1.46200894]
[1747101915469,0.001,102400.0,102390.0,1.42990894]
[1747101915720,0.01076476,102400.0,102390.0,1.07993169]
[1747101916073,0.001,102400.0,102390.0,1.07993169]
[1747101916258,0.001,102400.0,102390.0,1.43566876]
[1747101916465,0.001,102400.0,102390.0,1.45086876]
[1747101916660,0.001,102400.0,102390.0,1.41996876]
[1747101916940,0.001,102400.0,102390.0,1.45116876]
[1747101917525,0.001,102400.0,102390.0,1.87316876]
[1747101917729,0.001,102400.0,102390.0,1.96902306]
[1747101918294,0.001,102400.0,102390.0,1.87316876]
[1747101920397,0.001,102400.0,102390.0,2.27316876]
[1747101920616,0.001,102400.0,102390.0,2.61320583]
[1747101921064,0.001,102400.0,102390.0,2.27316876]
[1747101922403,0.001,102400.0,102390.0,2.61320583]
[1747101922618,0.001,102400.0,102390.0,2.71906013]
[1747101922834,0.1403504,102440.0,102430.0,0.23908327]
[1747101923022,0.1403504,102440.0,102430.0,0.53185757]
[1747101923369,0.32582597,102440.0,102430.0,0.19692]
[1747101923820,0.32582597,102440.0,102430.0,0.41170071]
[1747101924030,0.32582597,102440.0,102430.0,0.19692]
[1747101924031,0.30644554,102440.0,102430.0,0.19692]
[1747101924249,0.35662303,102440.0,102430.0,0.20668266]
[1747101924458,0.36162303,102440.0,102430.0,0.19692]
[1747101924868,0.31744554,102440.0,102430.0,0.20668266]
[1747101925300,0.20501795,102430.0,102420.0,0.01454085]
[1747101925517,0.23621795,102430.0,102420.0,0.50258951]
[1747101925731,0.23621795,102430.0,102420.0,0.51235303]
[1747101925972,0.23621795,102430.0,102420.0,0.20668371]
[1747101926176,0.2878443,102430.0,102420.0,0.41172169]
[1747101926397,0.24698033,102430.0,102420.0,0.43124826]
[1747101926565,0.24798033,102430.0,102420.0,0.44101169]
[1747101926771,0.05272447,102430.0,102420.0,0.55140618]
[1747101927028,0.01176209,102430.0,102420.0,0.89144325]
[1747101927185,0.002,102430.0,102420.0,0.89144325]
[1747101927478,0.002,102430.0,102420.0,0.89888812]
[1747101927698,0.002,102430.0,102420.0,1.15051576]
[1747101927912,0.002,102430.0,102420.0,1.05466146]
[1747101928359,0.002,102430.0,102420.0,0.80303382]
[1747101928802,0.002,102430.0,102420.0,1.08526146]
[1747101929237,0.002,102430.0,102420.0,1.42526146]
[1747101929464,0.002,102430.0,102420.0,1.82526146]
[1747101929699,0.001,102430.0,102420.0,1.84653443]
[1747101929950,0.00014271,102440.0,102430.0,0.56454242]
[1747101930170,0.00014271,102440.0,102430.0,1.11102436]
[1747101930389,0.00014271,102440.0,102430.0,1.12622436]
[1747101930846,0.00014271,102440.0,102430.0,1.22207866]
[1747101931290,0.00014271,102440.0,102430.0,1.20687866]
[1747101931519,0.25686322,102440.0,102430.0,0.83967225]
[1747101931739,0.2679837,102440.0,102430.0,0.66517557]
[1747101931912,0.07274747,102440.0,102430.0,0.87573795]
[1747101932091,0.27774551,102440.0,102430.0,0.87573814]
[1747101932480,0.07274747,102440.0,102430.0,1.20346444]
[1747101932688,0.05322433,102440.0,102430.0,1.20346444]
[1747101932890,0.01126319,102440.0,102430.0,1.20346444]
[1747101933089,0.02102423,102440.0,102430.0,1.20346444]
[1747101933396,0.02102423,102440.0,102430.0,1.14889025]
[1747101934280,0.01126319,102440.0,102430.0,1.14889025]
[1747101934727,0.02102414,102440.0,102430.0,1.14889025]
[1747101935114,0.03078538,102440.0,102430.0,1.14889025]
[1747101935323,0.02102414,102440.0,102430.0,1.14889025]
[1747101935495,0.03078528,102440.0,102430.0,1.24474455]
[1747101935705,0.03078528,102440.0,102430.0,0.99311691]
[1747101935875,0.03078528,102440.0,102430.0,1.24474455]
[1747101936320,0.02102414,102440.0,102430.0,1.24474455]
[1747101936520,0.03078528,102440.0,102430.0,1.14889025]
[1747101936676,0.01126319,102440.0,102430.0,1.14889025]
[1747101936883,0.01126319,102440.0,102430.0,1.16549025]
[1747101937107,0.01126319,102440.0,102430.0,1.14889025]
[1747101937574,0.02102414,102440.0,102430.0,0.89726261]
[1747101937708,0.01126319,102440.0,102430.0,1.14889025]
[1747101938732,0.01126319,102440.0,102430.0,1.24474455]
[1747101938932,0.01126319,102440.0,102430.0,1.26134455]
[1747101939337,0.01126319,102440.0,102430.0,1.69868455]
[1747101940169,0.01126319,102440.0,102430.0,2.09868455]
[1747101941098,0.01126319,102440.0,102430.0,1.97073025]
[1747101941596,0.01126319,102440.0,102430.0,1.57073025]
[1747101943530,0.04054718,102440.0,102430.0,1.37193025]
[1747101943712,0.06228556,102440.0,102430.0,1.51922261]
[1747101943914,0.25752237,102440.0,102430.0,0.7204543]
[1747101944122,0.30279664,102440.0,102430.0,0.92547225]
[1747101944270,0.30279664,102440.0,102430.0,0.20276]
[1747101945090,0.30279664,102440.0,102430.0,0.004]
[1747101945707,0.31187336,102440.0,102430.0,0.004]
[1747101945923,0.31182455,102440.0,102430.0,0.004]
[1747101946260,0.26655028,102440.0,102430.0,0.002]
[1747101946680,0.25747356,102440.0,102430.0,0.002]
[1747101947476,0.24587985,102430.0,102420.0,0.43308607]
[1747101947692,0.24587985,102430.0,102400.0,0.97160963]
[1747101947693,0.05405695,102410.0,102400.0,0.95706878]
[1747101947904,0.25568656,102410.0,102400.0,0.91168308]
[1747101948111,0.21486367,102390.0,102380.0,0.22457122]
[1747101948357,0.04489848,102390.0,102380.0,0.99058717]
[1747101948554,0.27750747,102390.0,102380.0,0.399]
[1747101948743,0.26641962,102380.0,102370.0,1.02609802]
[1747101948965,0.27752897,102380.0,102370.0,1.49602928]
[1747101949097,0.07241146,102380.0,102370.0,1.48626137]
[1747101949310,0.06264393,102380.0,102370.0,1.49125643]
[1747101949510,0.04310935,102380.0,102370.0,1.74303046]
[1747101949743,0.02087611,102380.0,102370.0,1.74303046]
[1747101949949,0.08047765,102380.0,102370.0,1.74303056]
[1747101950219,0.07071022,102380.0,102370.0,1.75279837]
[1747101950405,0.04140935,102380.0,102370.0,1.76733922]
[1747101950616,0.01110935,102380.0,102370.0,1.77699722]
[1747101950821,0.01110935,102380.0,102370.0,1.87285152]
[1747101951031,0.080526,102400.0,102390.0,0.21486405]
[1747101951245,0.21482224,102410.0,102390.0,0.58665275]
[1747101951435,0.06119334,102410.0,102400.0,0.21484326]
[1747101951639,0.25648676,102410.0,102400.0,0.20507802]
[1747101951851,0.25648676,102410.0,102400.0,0.21484326]
[1747101952059,0.25648676,102410.0,102400.0,0.2246084]
[1747101952272,0.24672257,102410.0,102400.0,0.21484326]
[1747101953461,0.0319,102410.0,102400.0,0.33500336]
[1747101953706,0.04206333,102420.0,102410.0,0.22458656]
[1747101953886,0.26662788,102420.0,102410.0,0.21482247]
[1747101954142,0.06159028,102420.0,102410.0,0.23912761]
[1747101954326,0.25686493,102420.0,102410.0,0.23912761]
[1747101954860,0.0323,102420.0,102410.0,0.33693837]
[1747101955128,0.03252638,102420.0,102410.0,0.24894041]
[1747101955353,0.03139395,102420.0,102410.0,0.24894041]
[1747101955583,0.04115672,102420.0,102410.0,0.68471499]
[1747101955815,0.02928915,102420.0,102410.0,0.68471499]
[1747101956019,0.03462466,102430.0,102420.0,0.23910521]
[1747101956230,0.05414923,102430.0,102420.0,0.33495951]
[1747101956448,0.07024923,102430.0,102420.0,0.32519646]
[1747101956640,0.07024923,102430.0,102420.0,0.3349597]
[1747101957033,0.07024923,102430.0,102420.0,0.34472275]
[1747101957196,0.08001189,102430.0,102420.0,0.34472275]
[1747101957460,0.06048943,102420.0,102410.0,0.96893174]
[1747101957811,0.07025295,102420.0,102410.0,1.07455004]
[1747101957948,0.08118169,102420.0,102410.0,1.07455004]
[1747101958150,0.03045474,102420.0,102410.0,1.07455004]
[1747101958356,0.04021807,102420.0,102410.0,1.07455004]
[1747101958562,0.03045465,102420.0,102410.0,1.07455004]
[1747101959290,0.04021789,102420.0,102410.0,1.07455004]
[1747101959518,0.03045455,102420.0,102410.0,1.07455004]
[1747101959955,0.01092874,102420.0,102410.0,1.47326118]
[1747101960170,0.03045493,102420.0,102410.0,1.47326118]
[1747101960381,0.03045493,102420.0,102410.0,1.1333409]
[1747101961180,0.22572929,102420.0,102410.0,1.05502185]